[Event "Early Titled Tuesday Blitz | February 8 2022"]
[White "Lucas, Arthur"]
[Black "Liyanage, Ranindu Dilshan"]
[WhiteFideId "26093073"]
[BlackFideId "9915834"]
[WhiteElo "2129"]
[BlackElo "1858"]
[Result "1-0"]
[Round "07"]
[TimeControl "180+1"]
[Date "2022.02.08"]
[WhiteClock "0:00:12"]
[BlackClock "0:00:12"]

1. e4 {[%clk 0:03:00]}  c5 {[%clk 0:02:57]} 2. Nf3 {[%clk 0:03:00]}  d6 {[%clk 0:02:56]} 3. d4 {[%clk 0:03:00]}  cxd4 {[%clk 0:02:57]} 4. Nxd4 {[%clk 0:03:00]}  Nf6 {[%clk 0:02:58]} 5. Nc3 {[%clk 0:03:00]}  a6 {[%clk 0:02:58]} 6. Be3 {[%clk 0:02:49]}  e5 {[%clk 0:02:58]} 7. Nb3 {[%clk 0:02:49]}  Be7 {[%clk 0:02:58]} 8. f3 {[%clk 0:02:49]}  Be6 {[%clk 0:02:57]} 9. Qd2 {[%clk 0:02:49]}  Nbd7 {[%clk 0:02:56]} 10. Nd5 {[%clk 0:02:45]}  Bxd5 {[%clk 0:02:53]} 11. exd5 {[%clk 0:02:46]}  O-O {[%clk 0:02:53]} 12. O-O-O {[%clk 0:02:44]}  Rc8 {[%clk 0:02:45]} 13. Kb1 {[%clk 0:02:38]}  Nb6 {[%clk 0:02:45]} 14. Qa5 {[%clk 0:02:22]}  Nc4 {[%clk 0:02:34]} 15. Bxc4 {[%clk 0:02:14]}  Rxc4 {[%clk 0:02:32]} 16. Qxd8 {[%clk 0:02:12]}  Bxd8 {[%clk 0:02:24]} 17. Nd2 {[%clk 0:02:07]}  Rc8 {[%clk 0:02:23]} 18. Ne4 {[%clk 0:02:02]}  Ne8 {[%clk 0:02:03]} 19. g4 {[%clk 0:01:52]}  g6 {[%clk 0:01:52]} 20. g5 {[%clk 0:01:50]}  Be7 {[%clk 0:01:52]} 21. h4 {[%clk 0:01:49]}  f5 {[%clk 0:01:52]} 22. Nd2 {[%clk 0:01:36]}  b5 {[%clk 0:01:46]} 23. f4 {[%clk 0:01:33]}  Nc7 {[%clk 0:01:40]} 24. Nb3 {[%clk 0:01:20]}  e4 {[%clk 0:01:15]} 25. h5 {[%clk 0:01:17]}  Rfe8 {[%clk 0:00:32]} 26. hxg6 {[%clk 0:01:09]}  hxg6 {[%clk 0:00:33]} 27. Rh6 {[%clk 0:01:10]}  Kf7 {[%clk 0:00:33]} 28. Rh7+ {[%clk 0:01:10]}  Kg8 {[%clk 0:00:31]} 29. Rdh1 {[%clk 0:00:55]}  Bf8 {[%clk 0:00:30]} 30. Bd4 {[%clk 0:00:42]}  Nxd5 {[%clk 0:00:30]} 31. Bf6 {[%clk 0:00:35]}  Nxf4 {[%clk 0:00:23]} 32. Nd4 {[%clk 0:00:18]}  Nh5 {[%clk 0:00:22]} 33. R1xh5 {[%clk 0:00:16]}  gxh5 {[%clk 0:00:23]} 34. g6 {[%clk 0:00:15]}  Bg7 {[%clk 0:00:12]} 35. Rxg7+ {[%clk 0:00:15]}  Kf8 {[%clk 0:00:12]} 36. Rf7+ {[%clk 0:00:12]}  Kg8 {[%clk 0:00:12]} 37. Rh7 {[%clk 0:00:12]} 1-0


[Site "https://www.chess.com"]

[Event "Early Titled Tuesday Blitz | February 8 2022"]
[White "Martinez Lopez, David"]
[Black "Van den Dikkenberg, Erik"]
[WhiteFideId "22235779"]
[BlackFideId "1005880"]
[WhiteElo "2387"]
[BlackElo "2118"]
[Result "0-1"]
[Round "07"]
[TimeControl "180+1"]
[Date "2022.02.08"]
[WhiteClock "0:00:03"]
[BlackClock "0:00:14"]

1. e4 {[%clk 0:03:00]}  c5 {[%clk 0:02:58]} 2. Nf3 {[%clk 0:03:00]}  d6 {[%clk 0:02:56]} 3. d4 {[%clk 0:03:00]}  cxd4 {[%clk 0:02:56]} 4. Nxd4 {[%clk 0:03:01]}  Nf6 {[%clk 0:02:56]} 5. Nc3 {[%clk 0:03:01]}  a6 {[%clk 0:02:57]} 6. h3 {[%clk 0:03:00]}  e5 {[%clk 0:02:56]} 7. Nde2 {[%clk 0:03:00]}  Be7 {[%clk 0:02:56]} 8. g4 {[%clk 0:02:59]}  O-O {[%clk 0:02:57]} 9. Bg2 {[%clk 0:02:59]}  Nc6 {[%clk 0:02:57]} 10. O-O {[%clk 0:03:00]}  Be6 {[%clk 0:02:57]} 11. Ng3 {[%clk 0:02:59]}  b5 {[%clk 0:02:56]} 12. Nf5 {[%clk 0:02:58]}  b4 {[%clk 0:02:51]} 13. Nd5 {[%clk 0:02:40]}  Bxd5 {[%clk 0:02:44]} 14. exd5 {[%clk 0:02:38]}  Nb8 {[%clk 0:02:43]} 15. f4 {[%clk 0:02:32]}  Nbd7 {[%clk 0:02:42]} 16. fxe5 {[%clk 0:02:22]}  Nxe5 {[%clk 0:02:42]} 17. Bg5 {[%clk 0:02:22]}  Rc8 {[%clk 0:02:13]} 18. Nxe7+ {[%clk 0:01:50]}  Qxe7 {[%clk 0:02:12]} 19. Bxf6 {[%clk 0:01:46]}  gxf6 {[%clk 0:02:12]} 20. Qd2 {[%clk 0:01:44]}  Qc7 {[%clk 0:01:31]} 21. Rf2 {[%clk 0:01:38]}  Qc5 {[%clk 0:01:28]} 22. Be4 {[%clk 0:01:27]}  Ng6 {[%clk 0:01:22]} 23. Kh1 {[%clk 0:01:17]}  Rfe8 {[%clk 0:01:21]} 24. Re1 {[%clk 0:00:54]}  Re5 {[%clk 0:01:20]} 25. Bg2 {[%clk 0:00:35]}  Qxc2 {[%clk 0:00:45]} 26. Qxc2 {[%clk 0:00:20]}  Rxe1+ {[%clk 0:00:44]} 27. Kh2 {[%clk 0:00:20]}  Rxc2 {[%clk 0:00:44]} 28. Rxc2 {[%clk 0:00:21]}  Nf4 {[%clk 0:00:37]} 29. Bf3 {[%clk 0:00:18]}  Re5 {[%clk 0:00:32]} 30. Rd2 {[%clk 0:00:16]}  Kg7 {[%clk 0:00:30]} 31. Kg3 {[%clk 0:00:16]}  Ng6 {[%clk 0:00:29]} 32. Rd4 {[%clk 0:00:16]}  a5 {[%clk 0:00:28]} 33. h4 {[%clk 0:00:15]}  Re3 {[%clk 0:00:27]} 34. Kf2 {[%clk 0:00:14]}  Re8 {[%clk 0:00:24]} 35. h5 {[%clk 0:00:13]}  Ne5 {[%clk 0:00:24]} 36. Be2 {[%clk 0:00:14]}  Rc8 {[%clk 0:00:23]} 37. Rd2 {[%clk 0:00:13]}  Rc1 {[%clk 0:00:22]} 38. Ke3 {[%clk 0:00:11]}  Rh1 {[%clk 0:00:21]} 39. Rc2 {[%clk 0:00:07]}  Rh3+ {[%clk 0:00:20]} 40. Kf2 {[%clk 0:00:07]}  Nxg4+ {[%clk 0:00:14]} 41. Bxg4 {[%clk 0:00:06]}  Rh2+ {[%clk 0:00:14]} 42. Kg3 {[%clk 0:00:03]}  Rxc2 {[%clk 0:00:14]} 0-1


[Site "https://www.chess.com"]

[Event "Early Titled Tuesday Blitz | February 8 2022"]
[White "Martirosyan, Haik M."]
[Black "Rakhmanov, Aleksandr"]
[WhiteFideId "13306553"]
[BlackFideId "4173708"]
[WhiteElo "2735"]
[BlackElo "2500"]
[Result "1-0"]
[Round "07"]
[TimeControl "180+1"]
[Date "2022.02.08"]
[WhiteClock "0:00:03"]
[BlackClock "0:00:02"]

1. c4 {[%clk 0:03:00]}  e5 {[%clk 0:02:55]} 2. Nc3 {[%clk 0:03:00]}  Bb4 {[%clk 0:02:55]} 3. g3 {[%clk 0:02:56]}  Bxc3 {[%clk 0:02:54]} 4. bxc3 {[%clk 0:02:56]}  Ne7 {[%clk 0:02:55]} 5. Bg2 {[%clk 0:02:54]}  O-O {[%clk 0:02:55]} 6. Nf3 {[%clk 0:02:53]}  d6 {[%clk 0:02:55]} 7. O-O {[%clk 0:02:51]}  Nbc6 {[%clk 0:02:56]} 8. d3 {[%clk 0:02:50]}  b6 {[%clk 0:02:50]} 9. Nd2 {[%clk 0:02:46]}  Rb8 {[%clk 0:02:45]} 10. Bb2 {[%clk 0:02:29]}  f5 {[%clk 0:02:41]} 11. d4 {[%clk 0:02:29]}  Kh8 {[%clk 0:02:31]} 12. f4 {[%clk 0:02:26]}  e4 {[%clk 0:02:20]} 13. e3 {[%clk 0:02:26]}  Na5 {[%clk 0:02:17]} 14. Rf2 {[%clk 0:02:25]}  c5 {[%clk 0:02:17]} 15. d5 {[%clk 0:02:17]}  Bd7 {[%clk 0:02:12]} 16. a4 {[%clk 0:02:15]}  Ng8 {[%clk 0:02:01]} 17. Bf1 {[%clk 0:02:13]}  Nf6 {[%clk 0:02:01]} 18. h3 {[%clk 0:02:12]}  h5 {[%clk 0:01:54]} 19. Rg2 {[%clk 0:02:12]}  Kg8 {[%clk 0:01:50]} 20. Be2 {[%clk 0:02:12]}  Kf7 {[%clk 0:01:50]} 21. Nf1 {[%clk 0:02:08]}  Rh8 {[%clk 0:01:48]} 22. Nh2 {[%clk 0:02:08]}  g6 {[%clk 0:01:48]} 23. Bc1 {[%clk 0:02:09]}  Qe8 {[%clk 0:01:44]} 24. Bd2 {[%clk 0:02:07]}  Ke7 {[%clk 0:01:45]} 25. Be1 {[%clk 0:02:06]}  Kd8 {[%clk 0:01:45]} 26. Bf1 {[%clk 0:02:05]}  Kc7 {[%clk 0:01:45]} 27. Rb2 {[%clk 0:02:06]}  Qg8 {[%clk 0:01:41]} 28. Qe2 {[%clk 0:02:00]}  Bc8 {[%clk 0:01:33]} 29. Rb5 {[%clk 0:01:57]}  Ba6 {[%clk 0:01:33]} 30. Qf2 {[%clk 0:01:54]}  g5 {[%clk 0:01:30]} 31. fxg5 {[%clk 0:01:47]}  Qxg5 {[%clk 0:01:31]} 32. Kh1 {[%clk 0:01:35]}  Rbg8 {[%clk 0:01:26]} 33. Be2 {[%clk 0:01:29]}  Nd7 {[%clk 0:01:21]} 34. Qf1 {[%clk 0:00:53]}  Qxe3 {[%clk 0:01:06]} 35. Rb2 {[%clk 0:00:52]}  Ne5 {[%clk 0:01:00]} 36. Qxf5 {[%clk 0:00:48]}  Rf8 {[%clk 0:00:36]} 37. Qe6 {[%clk 0:00:48]}  Bxc4 {[%clk 0:00:27]} 38. Qe7+ {[%clk 0:00:42]}  Nd7 {[%clk 0:00:25]} 39. Bd2 {[%clk 0:00:39]}  Qxg3 {[%clk 0:00:14]} 40. Rg1 {[%clk 0:00:38]}  Qe5 {[%clk 0:00:09]} 41. Bg5 {[%clk 0:00:22]}  Qxe7 {[%clk 0:00:09]} 42. Bxe7 {[%clk 0:00:23]}  Rf7 {[%clk 0:00:09]} 43. Bg5 {[%clk 0:00:22]}  Ne5 {[%clk 0:00:09]} 44. Bxc4 {[%clk 0:00:21]}  Nexc4 {[%clk 0:00:09]} 45. Re2 {[%clk 0:00:21]}  Re8 {[%clk 0:00:10]} 46. Bh4 {[%clk 0:00:18]}  e3 {[%clk 0:00:07]} 47. Rg5 {[%clk 0:00:18]}  Re5 {[%clk 0:00:06]} 48. Rxe5 {[%clk 0:00:18]}  dxe5 {[%clk 0:00:07]} 49. Kg2 {[%clk 0:00:19]}  Kd6 {[%clk 0:00:07]} 50. Nf1 {[%clk 0:00:19]}  Kxd5 {[%clk 0:00:08]} 51. Bg5 {[%clk 0:00:18]}  Rf5 {[%clk 0:00:04]} 52. Bxe3 {[%clk 0:00:17]}  Rf7 {[%clk 0:00:04]} 53. h4 {[%clk 0:00:17]}  Ke6 {[%clk 0:00:04]} 54. Bg5 {[%clk 0:00:17]}  Rd7 {[%clk 0:00:04]} 55. Ng3 {[%clk 0:00:16]}  Rd3 {[%clk 0:00:04]} 56. Nxh5 {[%clk 0:00:17]}  Rxc3 {[%clk 0:00:05]} 57. Nf4+ {[%clk 0:00:14]}  Kf5 {[%clk 0:00:04]} 58. Nd5 {[%clk 0:00:14]}  Rd3 {[%clk 0:00:05]} 59. Ne7+ {[%clk 0:00:13]}  Ke6 {[%clk 0:00:06]} 60. Ng6 {[%clk 0:00:12]}  Rd4 {[%clk 0:00:03]} 61. Kg3 {[%clk 0:00:11]}  Nc6 {[%clk 0:00:03]} 62. h5 {[%clk 0:00:09]}  Kf5 {[%clk 0:00:04]} 63. Bh4 {[%clk 0:00:05]}  Rd3+ {[%clk 0:00:04]} 64. Kf2 {[%clk 0:00:04]}  Nd4 {[%clk 0:00:04]} 65. Re1 {[%clk 0:00:04]}  Rd2+ {[%clk 0:00:03]} 66. Kf1 {[%clk 0:00:02]}  Nf3 {[%clk 0:00:03]} 67. Ne7+ {[%clk 0:00:02]}  Kg4 {[%clk 0:00:02]} 68. h6 {[%clk 0:00:03]} 1-0


[Site "https://www.chess.com"]

[Event "Early Titled Tuesday Blitz | February 8 2022"]
[White "Matlakov, Maxim"]
[Black "Lorparizangeneh, Shahin"]
[WhiteFideId "4168003"]
[BlackFideId "12521604"]
[WhiteElo "2661"]
[BlackElo "2525"]
[Result "1-0"]
[Round "07"]
[TimeControl "180+1"]
[Date "2022.02.08"]
[WhiteClock "0:00:09"]
[BlackClock "0:00:04"]

1. Nf3 {[%clk 0:03:00]}  d5 {[%clk 0:02:59]} 2. g3 {[%clk 0:03:00]}  g6 {[%clk 0:02:59]} 3. Bg2 {[%clk 0:02:58]}  Bg7 {[%clk 0:02:59]} 4. O-O {[%clk 0:02:58]}  e5 {[%clk 0:03:00]} 5. d3 {[%clk 0:02:58]}  Ne7 {[%clk 0:03:00]} 6. e4 {[%clk 0:02:56]}  O-O {[%clk 0:02:59]} 7. Nc3 {[%clk 0:02:56]}  dxe4 {[%clk 0:02:54]} 8. dxe4 {[%clk 0:02:55]}  Nbc6 {[%clk 0:02:55]} 9. Be3 {[%clk 0:02:52]}  Be6 {[%clk 0:02:52]} 10. Ng5 {[%clk 0:02:50]}  Bc4 {[%clk 0:02:52]} 11. Re1 {[%clk 0:02:49]}  Qxd1 {[%clk 0:02:47]} 12. Raxd1 {[%clk 0:02:49]}  Nd4 {[%clk 0:02:47]} 13. Rd2 {[%clk 0:02:35]}  Rad8 {[%clk 0:02:29]} 14. Red1 {[%clk 0:02:34]}  Rd6 {[%clk 0:02:14]} 15. b3 {[%clk 0:02:29]}  Ba6 {[%clk 0:02:12]} 16. Nd5 {[%clk 0:02:29]}  Nxd5 {[%clk 0:02:10]} 17. exd5 {[%clk 0:02:30]}  Ne2+ {[%clk 0:02:09]} 18. Kh1 {[%clk 0:02:27]}  Nc3 {[%clk 0:02:10]} 19. Re1 {[%clk 0:02:25]}  b6 {[%clk 0:02:06]} 20. Ne4 {[%clk 0:02:11]}  Nxe4 {[%clk 0:02:06]} 21. Bxe4 {[%clk 0:02:12]}  f5 {[%clk 0:02:07]} 22. Bf3 {[%clk 0:02:03]}  e4 {[%clk 0:01:58]} 23. Be2 {[%clk 0:01:55]}  Bxe2 {[%clk 0:01:48]} 24. Rexe2 {[%clk 0:01:54]}  Bc3 {[%clk 0:01:48]} 25. Rd1 {[%clk 0:01:54]}  c6 {[%clk 0:01:44]} 26. f3 {[%clk 0:01:42]}  Rxd5 {[%clk 0:01:39]} 27. Rf1 {[%clk 0:01:39]}  exf3 {[%clk 0:01:35]} 28. Rxf3 {[%clk 0:01:40]}  Re8 {[%clk 0:01:36]} 29. Ref2 {[%clk 0:01:38]}  Bg7 {[%clk 0:01:18]} 30. Kg2 {[%clk 0:01:37]}  Re4 {[%clk 0:01:07]} 31. c4 {[%clk 0:01:34]}  Rd3 {[%clk 0:01:06]} 32. Bf4 {[%clk 0:01:34]}  Rxf3 {[%clk 0:01:05]} 33. Kxf3 {[%clk 0:01:35]}  h6 {[%clk 0:01:04]} 34. h4 {[%clk 0:01:35]}  Rd4 {[%clk 0:01:03]} 35. Re2 {[%clk 0:01:32]}  Rd3+ {[%clk 0:01:02]} 36. Kg2 {[%clk 0:01:31]}  Kf7 {[%clk 0:01:02]} 37. Kh2 {[%clk 0:01:24]}  Rd7 {[%clk 0:00:53]} 38. Kg2 {[%clk 0:01:23]}  Re7 {[%clk 0:00:45]} 39. Rd2 {[%clk 0:01:23]}  c5 {[%clk 0:00:36]} 40. Kf3 {[%clk 0:01:22]}  Kf6 {[%clk 0:00:27]} 41. Rd6+ {[%clk 0:01:19]}  Kf7 {[%clk 0:00:27]} 42. Rc6 {[%clk 0:01:16]}  Rd7 {[%clk 0:00:26]} 43. Ke2 {[%clk 0:01:10]}  Bf8 {[%clk 0:00:25]} 44. a4 {[%clk 0:01:07]}  Kg7 {[%clk 0:00:24]} 45. Be5+ {[%clk 0:01:06]}  Kh7 {[%clk 0:00:25]} 46. Kf2 {[%clk 0:01:04]}  g5 {[%clk 0:00:23]} 47. h5 {[%clk 0:01:04]}  Bg7 {[%clk 0:00:23]} 48. Bd6 {[%clk 0:00:55]}  Bd4+ {[%clk 0:00:22]} 49. Kf3 {[%clk 0:00:55]}  Kg7 {[%clk 0:00:20]} 50. Bb8 {[%clk 0:00:35]}  Bc3 {[%clk 0:00:17]} 51. Ke2 {[%clk 0:00:29]}  Rd2+ {[%clk 0:00:16]} 52. Ke3 {[%clk 0:00:29]}  Rd7 {[%clk 0:00:16]} 53. Rg6+ {[%clk 0:00:28]}  Kh7 {[%clk 0:00:16]} 54. Bd6 {[%clk 0:00:28]}  Rf7 {[%clk 0:00:15]} 55. Re6 {[%clk 0:00:26]}  Bd4+ {[%clk 0:00:14]} 56. Kf3 {[%clk 0:00:26]}  Kg7 {[%clk 0:00:13]} 57. Rg6+ {[%clk 0:00:24]}  Kh7 {[%clk 0:00:13]} 58. Re6 {[%clk 0:00:24]}  Bc3 {[%clk 0:00:13]} 59. Be7 {[%clk 0:00:20]}  g4+ {[%clk 0:00:13]} 60. Kg2 {[%clk 0:00:18]}  f4 {[%clk 0:00:11]} 61. gxf4 {[%clk 0:00:17]}  Rxf4 {[%clk 0:00:12]} 62. Bd6 {[%clk 0:00:17]}  Rf7 {[%clk 0:00:13]} 63. Kg3 {[%clk 0:00:15]}  Rg7 {[%clk 0:00:12]} 64. Bf4 {[%clk 0:00:15]}  Rd7 {[%clk 0:00:10]} 65. Rxh6+ {[%clk 0:00:15]}  Kg8 {[%clk 0:00:10]} 66. Rg6+ {[%clk 0:00:15]}  Kf7 {[%clk 0:00:10]} 67. Kxg4 {[%clk 0:00:15]}  Rd4 {[%clk 0:00:10]} 68. Rd6 {[%clk 0:00:14]}  Ke7 {[%clk 0:00:08]} 69. Rxd4 {[%clk 0:00:14]}  cxd4 {[%clk 0:00:08]} 70. Kf3 {[%clk 0:00:14]}  d3 {[%clk 0:00:07]} 71. Kf2 {[%clk 0:00:10]}  Kf6 {[%clk 0:00:06]} 72. Be3 {[%clk 0:00:10]}  Kf5 {[%clk 0:00:04]} 73. Kf3 {[%clk 0:00:10]}  Bb4 {[%clk 0:00:04]} 74. Bh6 {[%clk 0:00:10]}  Bc5 {[%clk 0:00:03]} 75. Bd2 {[%clk 0:00:09]}  Bd4 {[%clk 0:00:04]} 76. h6 {[%clk 0:00:09]}  Kg6 {[%clk 0:00:04]} 77. Ke4 {[%clk 0:00:09]} 1-0


[Site "https://www.chess.com"]

[Event "Early Titled Tuesday Blitz | February 8 2022"]
[White "Maurizzi, Marc`Andria"]
[Black "Mekhitarian, Krikor Sevag"]
[WhiteFideId "36083534"]
[BlackFideId "2107660"]
[WhiteElo "2186"]
[BlackElo "2598"]
[Result "1-0"]
[Round "07"]
[TimeControl "180+1"]
[Date "2022.02.08"]
[WhiteClock "0:00:39"]
[BlackClock "0:00:01"]

1. d4 {[%clk 0:03:00]}  Nf6 {[%clk 0:02:59]} 2. c4 {[%clk 0:02:59]}  g6 {[%clk 0:02:59]} 3. Nc3 {[%clk 0:02:58]}  d5 {[%clk 0:02:59]} 4. Nf3 {[%clk 0:02:57]}  Bg7 {[%clk 0:02:59]} 5. cxd5 {[%clk 0:02:58]}  Nxd5 {[%clk 0:03:00]} 6. e4 {[%clk 0:02:58]}  Nxc3 {[%clk 0:03:00]} 7. bxc3 {[%clk 0:02:59]}  c5 {[%clk 0:03:00]} 8. Bb5+ {[%clk 0:03:00]}  Nd7 {[%clk 0:02:58]} 9. O-O {[%clk 0:02:59]}  O-O {[%clk 0:02:58]} 10. Bg5 {[%clk 0:02:54]}  a6 {[%clk 0:02:51]} 11. Bd3 {[%clk 0:02:51]}  Re8 {[%clk 0:02:48]} 12. Rb1 {[%clk 0:02:41]}  Qc7 {[%clk 0:02:40]} 13. a4 {[%clk 0:02:34]}  e5 {[%clk 0:02:26]} 14. d5 {[%clk 0:02:33]}  c4 {[%clk 0:02:26]} 15. Be2 {[%clk 0:02:23]}  Bf8 {[%clk 0:02:20]} 16. Nd2 {[%clk 0:02:22]}  Nc5 {[%clk 0:02:11]} 17. Be3 {[%clk 0:02:12]}  Bd7 {[%clk 0:02:03]} 18. Nxc4 {[%clk 0:02:04]}  Nxe4 {[%clk 0:01:59]} 19. Qc2 {[%clk 0:01:55]}  Nc5 {[%clk 0:01:55]} 20. Nb6 {[%clk 0:01:51]}  Bf5 {[%clk 0:01:51]} 21. Nxa8 {[%clk 0:01:51]}  Rxa8 {[%clk 0:01:52]} 22. Qa2 {[%clk 0:01:50]}  Bxb1 {[%clk 0:01:51]} 23. Rxb1 {[%clk 0:01:51]}  Ne4 {[%clk 0:01:49]} 24. Qc4 {[%clk 0:01:43]}  Qxc4 {[%clk 0:01:31]} 25. Bxc4 {[%clk 0:01:44]}  b5 {[%clk 0:01:19]} 26. axb5 {[%clk 0:01:16]}  axb5 {[%clk 0:01:20]} 27. Rxb5 {[%clk 0:01:04]}  Ra1+ {[%clk 0:01:17]} 28. Bf1 {[%clk 0:01:04]}  Nxc3 {[%clk 0:01:18]} 29. Rb2 {[%clk 0:01:04]}  Nxd5 {[%clk 0:01:13]} 30. Bd2 {[%clk 0:01:03]}  Kg7 {[%clk 0:01:01]} 31. g3 {[%clk 0:01:02]}  Ra7 {[%clk 0:00:26]} 32. Kg2 {[%clk 0:00:59]}  Rd7 {[%clk 0:00:26]} 33. Rb5 {[%clk 0:00:55]}  f6 {[%clk 0:00:25]} 34. Bc1 {[%clk 0:00:51]}  Be7 {[%clk 0:00:22]} 35. Bb2 {[%clk 0:00:46]}  Bd8 {[%clk 0:00:16]} 36. Bc4 {[%clk 0:00:44]}  Nb6 {[%clk 0:00:16]} 37. Bb3 {[%clk 0:00:43]}  Nc8 {[%clk 0:00:14]} 38. Be6 {[%clk 0:00:41]}  Rc7 {[%clk 0:00:15]} 39. Rb8 {[%clk 0:00:41]}  Ne7 {[%clk 0:00:02]} 40. Rxd8 {[%clk 0:00:40]}  Rb7 {[%clk 0:00:01]} 41. Rd7 {[%clk 0:00:39]} 1-0


[Site "https://www.chess.com"]

[Event "Early Titled Tuesday Blitz | February 8 2022"]
[White "Minina, Veronika"]
[Black "Gombocz, Ferenc Jr."]
[WhiteFideId "4174780"]
[BlackFideId "775029"]
[WhiteElo "1850"]
[BlackElo "1913"]
[Result "1/2-1/2"]
[Round "07"]
[TimeControl "180+1"]
[Date "2022.02.08"]
[WhiteClock "0:00:42"]
[BlackClock "0:00:21"]

1. Nf3 {[%clk 0:02:56]}  d5 {[%clk 0:02:59]} 2. g3 {[%clk 0:02:56]}  Bg4 {[%clk 0:02:56]} 3. Bg2 {[%clk 0:02:55]}  Nd7 {[%clk 0:02:50]} 4. c4 {[%clk 0:02:54]}  e6 {[%clk 0:02:42]} 5. cxd5 {[%clk 0:02:48]}  exd5 {[%clk 0:02:42]} 6. Qa4 {[%clk 0:02:42]}  Nf6 {[%clk 0:02:35]} 7. Nc3 {[%clk 0:02:29]}  c6 {[%clk 0:02:28]} 8. d3 {[%clk 0:02:19]}  Be7 {[%clk 0:02:22]} 9. Bg5 {[%clk 0:02:13]}  O-O {[%clk 0:02:20]} 10. O-O {[%clk 0:02:11]}  Bh5 {[%clk 0:02:12]} 11. Qh4 {[%clk 0:02:09]}  Bg6 {[%clk 0:02:11]} 12. Rac1 {[%clk 0:02:06]}  h6 {[%clk 0:02:10]} 13. Be3 {[%clk 0:02:03]}  Ne4 {[%clk 0:01:56]} 14. Qg4 {[%clk 0:02:00]}  h5 {[%clk 0:01:47]} 15. Qh3 {[%clk 0:01:58]}  Nd6 {[%clk 0:01:47]} 16. b4 {[%clk 0:01:26]}  Bf5 {[%clk 0:01:29]} 17. Qxh5 {[%clk 0:01:23]}  Nf6 {[%clk 0:01:27]} 18. Qg5 {[%clk 0:01:10]}  Nfe4 {[%clk 0:00:57]} 19. Qh5 {[%clk 0:00:45]}  Nf6 {[%clk 0:00:33]} 20. Qg5 {[%clk 0:00:43]}  Nfe4 {[%clk 0:00:31]} 21. Qh5 {[%clk 0:00:42]}  Nf6 {[%clk 0:00:21]} 1/2-1/2


[Site "https://www.chess.com"]

[Event "Early Titled Tuesday Blitz | February 8 2022"]
[White "Mirzoev, Azer"]
[Black "Vlassov, Nikolai"]
[WhiteFideId "13400304"]
[BlackFideId "4103360"]
[WhiteElo "2525"]
[BlackElo "2407"]
[Result "1-0"]
[Round "07"]
[TimeControl "180+1"]
[Date "2022.02.08"]
[WhiteClock "0:00:55"]
[BlackClock "0:00:21"]

1. Nf3 {[%clk 0:03:00]}  c5 {[%clk 0:02:58]} 2. c4 {[%clk 0:03:00]}  g6 {[%clk 0:02:58]} 3. Nc3 {[%clk 0:02:59]}  Bg7 {[%clk 0:02:58]} 4. a3 {[%clk 0:03:00]}  Nc6 {[%clk 0:02:58]} 5. Rb1 {[%clk 0:03:00]}  Nh6 {[%clk 0:02:50]} 6. b4 {[%clk 0:02:59]}  b6 {[%clk 0:02:49]} 7. e3 {[%clk 0:02:54]}  Nf5 {[%clk 0:02:41]} 8. Be2 {[%clk 0:02:54]}  O-O {[%clk 0:02:38]} 9. O-O {[%clk 0:02:55]}  d6 {[%clk 0:02:28]} 10. Qb3 {[%clk 0:02:49]}  h6 {[%clk 0:02:17]} 11. Bb2 {[%clk 0:02:49]}  Kh7 {[%clk 0:02:16]} 12. Rfd1 {[%clk 0:02:48]}  Be6 {[%clk 0:02:06]} 13. Nd5 {[%clk 0:02:47]}  Bxb2 {[%clk 0:01:59]} 14. Qxb2 {[%clk 0:02:46]}  f6 {[%clk 0:01:52]} 15. Nf4 {[%clk 0:02:35]}  Bf7 {[%clk 0:01:47]} 16. d4 {[%clk 0:02:35]}  cxd4 {[%clk 0:01:28]} 17. exd4 {[%clk 0:02:28]}  Qc8 {[%clk 0:01:24]} 18. b5 {[%clk 0:02:04]}  Na5 {[%clk 0:01:23]} 19. Rbc1 {[%clk 0:02:04]}  e5 {[%clk 0:01:16]} 20. dxe5 {[%clk 0:02:01]}  dxe5 {[%clk 0:01:17]} 21. Nd5 {[%clk 0:02:02]}  Bxd5 {[%clk 0:01:16]} 22. Rxd5 {[%clk 0:01:59]}  Nb7 {[%clk 0:01:12]} 23. h4 {[%clk 0:01:50]}  h5 {[%clk 0:01:11]} 24. Rcd1 {[%clk 0:01:32]}  Rd8 {[%clk 0:01:07]} 25. Rxd8 {[%clk 0:01:31]}  Nxd8 {[%clk 0:01:07]} 26. Bd3 {[%clk 0:01:11]}  Qe6 {[%clk 0:00:51]} 27. Bxf5 {[%clk 0:01:03]}  Qxf5 {[%clk 0:00:50]} 28. Qb4 {[%clk 0:01:01]}  Qe6 {[%clk 0:00:44]} 29. Qf8 {[%clk 0:00:58]}  Rc8 {[%clk 0:00:20]} 30. Rxd8 {[%clk 0:00:56]}  Rxd8 {[%clk 0:00:20]} 31. Qxd8 {[%clk 0:00:56]}  Qxc4 {[%clk 0:00:21]} 32. Qxf6 {[%clk 0:00:55]}  Qc1+ {[%clk 0:00:21]} 33. Kh2 {[%clk 0:00:55]} 1-0


[Site "https://www.chess.com"]

[Event "Early Titled Tuesday Blitz | February 8 2022"]
[White "Mohammad Fahad, Rahman"]
[Black "Jain Kashish Manoj"]
[WhiteFideId "10207791"]
[BlackFideId "35081098"]
[WhiteElo "2323"]
[BlackElo "1681"]
[Result "1-0"]
[Round "07"]
[TimeControl "180+1"]
[Date "2022.02.08"]
[WhiteClock "0:00:05"]
[BlackClock "0:00:05"]

1. e4 {[%clk 0:03:00]}  e6 {[%clk 0:02:56]} 2. d4 {[%clk 0:03:01]}  d5 {[%clk 0:02:57]} 3. Nc3 {[%clk 0:02:59]}  Bb4 {[%clk 0:02:56]} 4. e5 {[%clk 0:02:58]}  c5 {[%clk 0:02:56]} 5. a3 {[%clk 0:02:59]}  Bxc3+ {[%clk 0:02:56]} 6. bxc3 {[%clk 0:03:00]}  Ne7 {[%clk 0:02:57]} 7. h4 {[%clk 0:02:58]}  Qc7 {[%clk 0:02:49]} 8. h5 {[%clk 0:02:57]}  h6 {[%clk 0:02:49]} 9. Nf3 {[%clk 0:02:57]}  b6 {[%clk 0:02:44]} 10. a4 {[%clk 0:02:55]}  Ba6 {[%clk 0:02:40]} 11. Bb5+ {[%clk 0:02:56]}  Bxb5 {[%clk 0:02:31]} 12. axb5 {[%clk 0:02:56]}  a5 {[%clk 0:02:20]} 13. O-O {[%clk 0:02:17]}  Nd7 {[%clk 0:02:04]} 14. Nh4 {[%clk 0:02:07]}  O-O-O {[%clk 0:01:46]} 15. f4 {[%clk 0:01:59]}  f5 {[%clk 0:00:27]} 16. Ba3 {[%clk 0:01:35]}  Rhg8 {[%clk 0:00:19]} 17. Qf3 {[%clk 0:01:12]}  g5 {[%clk 0:00:18]} 18. hxg6 {[%clk 0:01:12]}  Nxg6 {[%clk 0:00:18]} 19. Nxg6 {[%clk 0:01:05]}  Rxg6 {[%clk 0:00:19]} 20. c4 {[%clk 0:01:06]}  dxc4 {[%clk 0:00:10]} 21. d5 {[%clk 0:01:01]}  Qb7 {[%clk 0:00:04]} 22. dxe6 {[%clk 0:00:34]}  Rxe6 {[%clk 0:00:05]} 23. Qh5 {[%clk 0:00:19]}  Rg8 {[%clk 0:00:04]} 24. Rf2 {[%clk 0:00:18]}  Reg6 {[%clk 0:00:04]} 25. Qh2 {[%clk 0:00:08]}  Rg3 {[%clk 0:00:03]} 26. Bb2 {[%clk 0:00:05]}  c3 {[%clk 0:00:03]} 27. Ba3 {[%clk 0:00:05]}  h5 {[%clk 0:00:03]} 28. Re1 {[%clk 0:00:06]}  h4 {[%clk 0:00:03]} 29. e6 {[%clk 0:00:07]}  Nf6 {[%clk 0:00:03]} 30. e7 {[%clk 0:00:03]}  Ne4 {[%clk 0:00:03]} 31. Rfe2 {[%clk 0:00:02]}  h3 {[%clk 0:00:03]} 32. e8=Q+ {[%clk 0:00:02]}  Rxe8 {[%clk 0:00:03]} 33. Qxg3 {[%clk 0:00:03]}  Nxg3 {[%clk 0:00:03]} 34. Rxe8+ {[%clk 0:00:04]}  Kc7 {[%clk 0:00:03]} 35. R8e7+ {[%clk 0:00:05]}  Kb8 {[%clk 0:00:04]} 36. Rxb7+ {[%clk 0:00:05]}  Kxb7 {[%clk 0:00:05]} 1-0


[Site "https://www.chess.com"]